fUSD/lending_fUSD_20240616
["ID","MTS","AMOUNT","RATE_DAILY","PERIOD"]
[329646065,1718538718309,-625.93,0.00023287,3]
[329646066,1718538718324,-500.0,0.00023287,3]
[329646067,1718538718338,-1856.52,0.00023287,3]
[329646068,1718538718363,-1002.46,0.00023287,3]
[329646069,1718538718389,-1386.03,0.00023287,3]
[329646070,1718538718406,-500.0,0.00023287,3]
[329646071,1718538718421,-779.24,0.00023287,3]
[329646072,1718538718443,-500.0,0.00023287,3]
[329646073,1718538718458,-500.0,0.00023287,3]
[329646074,1718538718473,-1126.05,0.00023287,3]
[329646075,1718538718500,-2255.51,0.00023287,3]
[329646076,1718538718514,-500.0,0.00023287,3]
[329646077,1718538718528,-445.64656895,0.00023287,3]
[329646078,1718538718551,-500.0,0.00023287,3]
[329646079,1718538718563,-871.1,0.00023287,3]
[329646080,1718538718595,-3285.08,0.00023287,3]
[329646081,1718538718607,-4311.37,0.00023287,3]
[329646082,1718538718617,-500.0,0.00023287,3]
[329646083,1718538718631,-755.82,0.00023287,3]
[329646084,1718538718644,-1618.36,0.00023287,3]
[329646085,1718538718656,-500.0,0.00023287,3]
[329646086,1718538718669,-500.0,0.00023287,3]
[329646087,1718538718681,-1768.97,0.00023287,3]
[329646088,1718538718699,-1055.75,0.00023287,3]
[329646089,1718538718710,-3359.28,0.00023287,3]
[329646090,1718538718728,-1535.59,0.00023287,3]
[329646091,1718538718755,-2155.72,0.00023287,3]
[329646092,1718538718770,-4282.88,0.00023287,3]
[329646093,1718538718781,-512.52,0.00023287,3]
[329646094,1718538718797,-527.63,0.00023287,3]
[329646095,1718538718810,-2030.88,0.00023287,3]
[329646096,1718538718827,-1367.9,0.00023287,3]
[329646097,1718538718840,-617.75,0.00023287,3]
[329646098,1718538718859,-500.0,0.00023287,3]
[329646099,1718538718871,-525.99,0.00023287,3]
[329646100,1718538718891,-500.0,0.00023287,3]
[329646101,1718538718911,-500.0,0.00023287,3]
[329646102,1718538718928,-596.9,0.00023287,3]
[329646103,1718538718940,-1369.58,0.00023287,3]
[329646104,1718538718959,-2396.45,0.00023287,3]
[329646105,1718538718973,-1410.09,0.00023287,3]
[329646106,1718538718991,-500.0,0.00023287,3]
[329646107,1718538719007,-2697.85,0.00023287,3]
[329646108,1718538719021,-1084.91,0.00023287,3]
[329646109,1718538719044,-500.0,0.00023287,3]
[329646110,1718538719066,-1718.15,0.00023287,3]
[329646111,1718538719107,-500.0,0.00023287,3]
[329646112,1718538719133,-500.0,0.00023287,3]
[329646113,1718538719183,-500.0,0.00023287,3]
[329646114,1718538719202,-1280.9,0.00023287,3]
[329646115,1718538719215,-500.0,0.00023287,3]
[329646116,1718538719241,-1550.83,0.00023287,3]
[329646117,1718538719257,-1300.26,0.00023287,3]
[329646118,1718538719292,-1551.39,0.00023287,3]
[329646119,1718538719318,-930.99,0.00023287,3]
[329646120,1718538719340,-500.0,0.00023287,3]
[329646121,1718538719352,-500.0,0.00023287,3]
[329646122,1718538719365,-500.0,0.00023287,3]
[329646123,1718538719385,-500.0,0.00023287,3]
[329646124,1718538719406,-500.0,0.00023287,3]
[329646125,1718538719423,-2227.01,0.00023287,3]
[329646126,1718538719446,-500.0,0.00023287,3]
[329646127,1718538719471,-517.9,0.00023287,3]
[329646128,1718538719485,-472.52713001,0.00023287,3]
[329646129,1718538719500,-500.0,0.00023287,3]
[329646130,1718538719533,-500.0,0.00023287,3]
[329646131,1718538719548,-500.0,0.00023287,3]
[329646132,1718538719563,-762.39,0.00023287,3]
[329646133,1718538719591,-500.0,0.00023287,3]
[329646134,1718538719629,-500.0,0.00023287,3]
[329646135,1718538719655,-1044.11,0.00023287,3]
[329646136,1718538719683,-500.0,0.00023287,3]
[329646137,1718538719698,-500.0,0.00023287,3]
[329646138,1718538719713,-500.0,0.00023287,3]
[329646139,1718538719727,-721.44,0.00023287,3]
[329646140,1718538719741,-500.0,0.00023287,3]
[329646141,1718538719755,-500.0,0.00023287,3]
[329646142,1718538719766,-500.0,0.00023287,3]
[329646143,1718538719781,-981.85,0.00023287,3]
[329646144,1718538719794,-1486.62,0.00023287,3]
[329646145,1718538719814,-4064.69,0.000233,2]
[329646146,1718538719831,-1489.98,0.000233,2]
[329646147,1718538719844,-150.0,0.000234,3]
[329646148,1718538719865,-150.0,0.000234,3]
[329646149,1718538719878,-160.0,0.00023437,2]
[329646150,1718538719890,-500.0,0.00023437,2]
[329646151,1718538719902,-306.28748574,0.00023498,2]
[329646152,1718538719917,-700.0,0.00023498,2]
[329646153,1718538719948,-500.0,0.00023498,2]
[329646154,1718538719985,-200.09966358,0.000235,2]
[329646155,1718538720019,-2014.967168,0.000235,2]
[329646156,1718538720060,-534.28,0.00023523,2]
[329646157,1718538720072,-500.0,0.00023561,3]
[329646158,1718538720086,-637.53810835,0.00023561,3]
[329646159,1718538720100,-500.0,0.00023561,3]
[329646160,1718538720132,-500.0,0.00023561,3]
[329646161,1718538720145,-500.0,0.00023561,3]
[329646162,1718538720162,-500.0,0.00023561,3]
[329646163,1718538720182,-500.0,0.00023561,3]
[329646164,1718538720192,-500.0,0.00023561,3]
[329646165,1718538720209,-500.0,0.00023561,3]
[329646166,1718538720221,-500.0,0.00023561,3]
[329646167,1718538720234,-500.0,0.00023561,3]
[329646168,1718538720247,-500.0,0.00023561,3]
[329646169,1718538720263,-500.0,0.00023561,3]
[329646170,1718538720282,-500.0,0.00023561,3]
[329646171,1718538720303,-500.0,0.00023561,3]
[329646172,1718538720317,-500.0,0.00023561,3]
[329646173,1718538720332,-500.0,0.00023561,3]
[329646174,1718538720359,-667.84,0.00023561,3]
[329646175,1718538720373,-500.0,0.00023561,3]
[329646176,1718538720387,-500.0,0.00023561,3]
[329646177,1718538720406,-500.0,0.00023561,3]
[329646178,1718538720418,-500.0,0.00023561,3]
[329646179,1718538720431,-500.0,0.00023561,3]
[329646180,1718538720442,-500.0,0.00023561,3]
[329646181,1718538720453,-500.0,0.00023561,3]
[329646182,1718538720466,-500.0,0.00023561,3]
[329646183,1718538720477,-500.0,0.00023561,3]
[329646184,1718538720488,-500.0,0.00023561,3]
[329646185,1718538720500,-625.0,0.00023561,3]
[329646186,1718538720524,-6613.19,0.00023561,3]
[329646187,1718538720553,-500.0,0.00023561,3]
[329646188,1718538720577,-626.88,0.00023561,3]
[329646189,1718538720588,-500.0,0.00023561,3]
[329646190,1718538720600,-500.0,0.00023561,3]
[329646191,1718538720617,-1006.45,0.00023561,3]
[329646192,1718538720630,-625.67,0.00023561,3]
[329646193,1718538720641,-500.0,0.00023561,3]
[329646194,1718538720655,-500.0,0.00023561,3]
[329646195,1718538720668,-500.0,0.00023561,3]
[329646196,1718538720681,-500.0,0.00023561,3]
[329646197,1718538720696,-643.81,0.00023561,3]
[329646198,1718538720709,-500.0,0.00023561,3]
[329646199,1718538720723,-1016.21,0.00023561,3]
[329646200,1718538720744,-500.0,0.00023561,3]
[329646201,1718538720759,-500.0,0.00023561,3]
[329646202,1718538720776,-256.26040937,0.00023561,3]
[329646203,1718538720788,-849.46,0.00023561,3]
[329646204,1718538720799,-588.93,0.00023561,3]
[329646205,1718538720832,-686.57,0.00023561,3]
[329646206,1718538720847,-500.0,0.00023561,3]
[329646207,1718538720878,-500.0,0.00023561,3]
[329646208,1718538720891,-500.0,0.00023561,3]
[329646209,1718538720902,-568.35,0.00023561,3]
[329646210,1718538720914,-503.85,0.00023561,3]
[329646211,1718538720927,-500.0,0.00023561,3]
[329646212,1718538720938,-902.54,0.00023561,3]
[329646213,1718538720949,-500.0,0.00023561,3]
[329646214,1718538720979,-522.79315522,0.00023561,3]
[329646215,1718538721021,-500.0,0.00023561,3]
[329646216,1718538721036,-500.0,0.00023561,3]
[329646217,1718538721057,-500.0,0.00023561,3]
[329646218,1718538721071,-500.0,0.00023561,3]
[329646219,1718538721088,-500.0,0.00023561,3]
[329646220,1718538721109,-500.0,0.00023561,3]
[329646221,1718538721134,-446.60893988,0.00023561,3]
[329646222,1718538721155,-833.07,0.00023561,3]
[329646223,1718538721167,-500.0,0.00023561,3]
[329646224,1718538721185,-500.0,0.00023561,3]
[329646225,1718538721197,-511.59,0.00023561,3]
[329646226,1718538721215,-1114.37,0.00023561,3]
[329646227,1718538721227,-510.6523979,0.00023561,3]
[329646228,1718538721239,-500.0,0.00023561,3]
[329646229,1718538721251,-867.65,0.00023561,3]
[329646230,1718538721281,-564.01,0.00023561,3]
[329646231,1718538721308,-500.0,0.00023561,3]
[329646232,1718538721327,-507.91,0.00023561,3]
[329646233,1718538721346,-500.0,0.00023561,3]
[329646234,1718538721373,-500.0,0.00023561,3]
[329646235,1718538721385,-531.33,0.00023561,3]
[329646236,1718538721413,-569.21565634,0.00023561,3]
[329646237,1718538721427,-500.0,0.00023561,3]
[329646238,1718538721443,-500.0,0.00023561,3]
[329646239,1718538721456,-500.0,0.00023561,3]
[329646240,1718538721471,-618.4,0.00023561,3]
[329646241,1718538721485,-561.59,0.00023561,3]
[329646242,1718538721510,-551.81,0.00023561,3]
[329646243,1718538721521,-500.0,0.00023561,3]
[329646244,1718538721533,-527.68,0.00023561,3]
[329646245,1718538721549,-500.0,0.00023561,3]
[329646246,1718538721574,-540.61,0.00023561,3]
[329646247,1718538721593,-827.67,0.00023561,3]
[329646248,1718538721625,-500.0,0.00023561,3]
[329646249,1718538721679,-500.0,0.00023561,3]
[329646250,1718538721693,-500.0,0.00023561,3]
[329646251,1718538721711,-500.0,0.00023561,3]
[329646252,1718538721751,-203.22,0.00023561,3]
[329646253,1718538721765,-1352.2,0.00023561,3]
[329646254,1718538721775,-500.0,0.00023561,3]
[329646255,1718538721787,-291.96327367,0.00023561,3]
[329646256,1718538721799,-500.0,0.00023561,3]
[329646257,1718538721828,-500.0,0.00023561,3]
[329646258,1718538721888,-491.26572758,0.00023561,3]
[329646259,1718538721916,-503.17,0.00023561,3]
[329646260,1718538721931,-569.68,0.00023561,3]
[329646261,1718538721954,-962.95,0.00023561,3]
[329646262,1718538721967,-500.0,0.00023561,3]
[329646263,1718538721990,-500.0,0.00023561,3]
[329646264,1718538722009,-500.0,0.00023561,3]
[329646265,1718538722022,-659.13,0.00023561,3]
[329646266,1718538722036,-500.0,0.00023561,3]
[329646267,1718538722052,-500.0,0.00023561,3]
[329646268,1718538722088,-798.56,0.00023561,3]
[329646269,1718538722149,-500.0,0.00023561,3]
[329646270,1718538722163,-1149.79,0.00023561,3]
[329646271,1718538722176,-1048.66,0.00023561,3]
[329646272,1718538722199,-500.0,0.00023561,3]
[329646273,1718538722217,-500.0,0.00023561,3]
[329646274,1718538722240,-500.0,0.00023561,3]
[329646275,1718538722255,-500.0,0.00023561,3]
[329646276,1718538722273,-500.0,0.00023561,3]
[329646277,1718538722284,-827.65,0.00023561,3]
[329646278,1718538722311,-500.0,0.00023561,3]
[329646279,1718538722322,-500.0,0.00023561,3]
[329646280,1718538722333,-500.0,0.00023561,3]
[329646281,1718538722361,-3617.46,0.00023561,3]
[329646282,1718538722373,-500.0,0.00023561,3]
[329646283,1718538722404,-910.63,0.00023561,3]
[329646284,1718538722446,-500.0,0.00023561,3]
[329646285,1718538722464,-500.0,0.00023561,3]
[329646286,1718538722477,-7927.95,0.00023561,3]
[329646287,1718538722505,-500.0,0.00023561,3]
[329646288,1718538722516,-500.0,0.00023561,3]
[329646289,1718538722529,-500.0,0.00023561,3]
[329646290,1718538722541,-524.41,0.00023561,3]
[329646291,1718538722556,-4256.0,0.00023561,3]
[329646292,1718538722577,-500.0,0.00023561,3]
[329646293,1718538722590,-500.0,0.00023561,3]
[329646294,1718538722603,-500.0,0.00023561,3]
[329646295,1718538722616,-500.0,0.00023561,3]
[329646296,1718538722631,-500.0,0.00023561,3]
[329646297,1718538722646,-1338.61,0.00023561,3]
[329646298,1718538722661,-500.0,0.00023561,3]
[329646299,1718538722689,-500.0,0.00023561,3]
[329646300,1718538722704,-1102.86,0.00023561,3]
[329646301,1718538722717,-500.0,0.00023561,3]
[329646302,1718538722743,-500.0,0.00023561,3]
[329646303,1718538722770,-500.0,0.00023561,3]
[329646304,1718538722782,-500.0,0.00023561,3]
[329646305,1718538722804,-1168.34,0.00023561,3]
[329646306,1718538722833,-500.0,0.00023561,3]
[329646307,1718538722843,-2020.94,0.00023561,3]
[329646308,1718538722854,-1805.75,0.00023561,3]
[329646309,1718538722867,-16716.72,0.00023561,3]
[329646310,1718538722878,-1241.14,0.00023561,3]
[329646311,1718538722904,-500.0,0.00023561,3]
[329646312,1718538722915,-500.0,0.00023561,3]
[329646313,1718538722929,-2124.83,0.00023561,3]
[329646314,1718538722945,-500.0,0.00023561,3]
[329646315,1718538722961,-1183.03,0.00023561,3]
[329646316,1718538722972,-8693.33,0.00023561,3]
[329646317,1718538722998,-4851.41,0.00023561,3]
[329646318,1718538723025,-500.0,0.00023561,3]
[329646319,1718538723036,-2372.0,0.00023561,3]
[329646320,1718538723047,-773.0,0.00023561,3]
[329646321,1718538723058,-500.0,0.00023561,3]
[329646322,1718538723069,-1272.31,0.00023561,3]
[329646323,1718538723079,-1816.2,0.00023561,3]
[329646324,1718538723090,-500.0,0.00023561,3]
[329646325,1718538723104,-500.0,0.00023561,3]
[329646326,1718538723122,-500.0,0.00023561,3]
[329646327,1718538723142,-500.0,0.00023561,3]
[329646328,1718538723160,-2506.46,0.00023561,3]
[329646329,1718538723172,-857.28,0.00023561,3]
[329646330,1718538723183,-500.0,0.00023561,3]
[329646331,1718538723195,-510.22,0.00023561,3]
[329646332,1718538723241,-542.84,0.00023561,3]
[329646333,1718538723252,-550.33,0.00023561,3]
[329646334,1718538723272,-1956.96,0.00023561,3]
[329646335,1718538723293,-3926.03,0.00023561,3]
[329646336,1718538723326,-740.8,0.00023561,3]
[329646337,1718538723343,-962.96,0.00023561,3]
[329646338,1718538723366,-5131.49,0.00023561,3]
[329646339,1718538723380,-500.0,0.00023561,3]
[329646340,1718538723399,-500.0,0.00023561,3]
[329646341,1718538723438,-500.0,0.00023561,3]
[329646342,1718538723458,-1515.06,0.00023561,3]
[329646343,1718538723481,-933.52,0.00023561,3]
[329646344,1718538723493,-605.14,0.00023561,3]
[329646345,1718538723504,-683.72,0.00023561,3]
[329646346,1718538723526,-1580.64,0.00023561,3]
[329646347,1718538723538,-1085.84,0.00023561,3]
[329646348,1718538723550,-1501.56,0.00023561,3]
[329646349,1718538723561,-7059.05,0.00023561,3]
[329646350,1718538723572,-1038.4,0.00023561,3]
[329646351,1718538723591,-500.0,0.00023561,3]
[329646352,1718538723608,-6081.58,0.00023561,3]
[329646353,1718538723622,-500.0,0.00023561,3]
[329646354,1718538723633,-500.0,0.00023561,3]
[329646355,1718538723645,-500.0,0.00023561,3]
[329646356,1718538723657,-3600.18,0.00023561,3]
[329646357,1718538723675,-500.0,0.00023561,3]
[329646358,1718538723716,-3713.02,0.00023561,3]
[329646359,1718538723732,-1899.16,0.00023561,3]
[329646360,1718538723757,-3745.09,0.00023561,3]
[329646361,1718538723770,-739.36,0.00023561,3]
[329646362,1718538723800,-500.0,0.00023561,3]
[329646363,1718538723842,-2331.02,0.00023561,3]
[329646364,1718538723860,-954.22,0.00023561,3]
[329646365,1718538723879,-2038.78,0.00023561,3]
[329646366,1718538723892,-3357.07,0.00023561,3]
[329646367,1718538723902,-645.61,0.00023561,3]
[329646368,1718538723913,-3148.47,0.00023561,3]
[329646369,1718538723928,-996.94,0.00023561,3]
[329646370,1718538723940,-500.0,0.00023561,3]
[329646371,1718538723964,-200.0,0.00023561,3]
[329646372,1718538723977,-500.0,0.00023561,3]
[329646373,1718538723989,-728.59,0.00023561,3]
[329646374,1718538724008,-654.77,0.00023561,3]
[329646375,1718538724027,-500.0,0.00023561,3]
[329646376,1718538724042,-1948.76,0.00023561,3]
[329646377,1718538724108,-962.07,0.00023561,3]
[329646378,1718538724126,-2105.14,0.00023561,3]
[329646379,1718538724141,-1292.48,0.00023561,3]
[329646380,1718538724154,-500.0,0.00023561,3]
[329646381,1718538724179,-625.93,0.00023561,3]
[329646382,1718538724221,-500.0,0.00023561,3]
[329646383,1718538724250,-1856.52,0.00023561,3]
[329646384,1718538724266,-1002.46,0.00023561,3]
[329646385,1718538724280,-1386.03,0.00023561,3]
[329646386,1718538724324,-500.0,0.00023561,3]
[329646387,1718538724335,-779.24,0.00023561,3]
[329646388,1718538724346,-500.0,0.00023561,3]
[329646389,1718538724372,-500.0,0.00023561,3]
[329646390,1718538724389,-2255.51,0.00023561,3]
[329646391,1718538724404,-1126.05,0.00023561,3]
[329646392,1718538724437,-500.0,0.00023561,3]
[329646393,1718538724452,-500.0,0.00023561,3]
[329646394,1718538724463,-871.1,0.00023561,3]
[329646395,1718538724475,-3285.08,0.00023561,3]
[329646396,1718538724486,-4311.37,0.00023561,3]
[329646397,1718538724497,-500.0,0.00023561,3]
[329646398,1718538724517,-755.82,0.00023561,3]
[329646399,1718538724531,-1618.36,0.00023561,3]
[329646400,1718538724548,-500.0,0.00023561,3]
[329646401,1718538724560,-500.0,0.00023561,3]
[329646402,1718538724742,-1768.97,0.00023561,3]
[329646403,1718538724759,-1055.75,0.00023561,3]
[329646404,1718538724774,-3359.28,0.00023561,3]
[329646405,1718538724787,-1535.59,0.00023561,3]
[329646406,1718538724801,-2155.72,0.00023561,3]
[329646407,1718538724826,-4282.88,0.00023561,3]
[329646408,1718538724840,-512.52,0.00023561,3]
[329646409,1718538724852,-527.63,0.00023561,3]
[329646410,1718538724874,-2030.88,0.00023561,3]
[329646411,1718538724885,-1367.9,0.00023561,3]
[329646412,1718538724897,-617.75,0.00023561,3]
[329646413,1718538724910,-500.0,0.00023561,3]
[329646414,1718538724922,-525.99,0.00023561,3]
[329646415,1718538724938,-500.0,0.00023561,3]
[329646416,1718538724951,-500.0,0.00023561,3]
[329646417,1718538724974,-596.9,0.00023561,3]
[329646418,1718538724985,-1369.58,0.00023561,3]
[329646419,1718538724996,-2396.45,0.00023561,3]
[329646420,1718538725006,-1410.09,0.00023561,3]
[329646421,1718538725018,-2697.85,0.00023561,3]
[329646422,1718538725029,-1084.91,0.00023561,3]
[329646423,1718538725041,-500.0,0.00023561,3]
[329646424,1718538725059,-1718.15,0.00023561,3]
[329646425,1718538725070,-500.0,0.00023561,3]
[329646426,1718538725083,-500.0,0.00023561,3]
[329646427,1718538725094,-500.0,0.00023561,3]
[329646428,1718538725106,-1280.9,0.00023561,3]
[329646429,1718538725120,-500.0,0.00023561,3]
[329646430,1718538725149,-1550.83,0.00023561,3]
[329646431,1718538725161,-1300.26,0.00023561,3]
[329646432,1718538725189,-1551.39,0.00023561,3]
[329646433,1718538725204,-930.99,0.00023561,3]
[329646434,1718538725218,-520.71086345,0.00023561,3]
[329646435,1718538725246,-500.0,0.00023561,3]
[329646436,1718538725257,-500.0,0.00023561,3]
[329646437,1718538725284,-500.0,0.00023561,3]
[329646438,1718538725298,-500.0,0.00023561,3]
[329646439,1718538725319,-2227.01,0.00023561,3]
[329646440,1718538725337,-500.0,0.00023561,3]
[329646441,1718538725372,-517.9,0.00023561,3]
[329646442,1718538725389,-500.0,0.00023561,3]
[329646443,1718538725400,-500.0,0.00023561,3]
[329646444,1718538725413,-762.39,0.00023561,3]
[329646445,1718538725431,-500.0,0.00023561,3]
[329646446,1718538725450,-500.0,0.00023561,3]
[329646447,1718538725491,-1044.11,0.00023561,3]
[329646448,1718538725502,-500.0,0.00023561,3]
[329646449,1718538725519,-500.0,0.00023561,3]
[329646450,1718538725542,-500.0,0.00023561,3]
[329646451,1718538725564,-721.44,0.00023561,3]
[329646452,1718538725576,-500.0,0.00023561,3]
[329646453,1718538725588,-500.0,0.00023561,3]
[329646454,1718538725608,-500.0,0.00023561,3]
[329646455,1718538725632,-981.85,0.00023561,3]
[329646456,1718538725652,-21921.66391273,0.000236,2]
[329646457,1718538725665,-152.0,0.00023696,3]
[329646458,1718538725682,-151.0,0.00023697,3]
[329646459,1718538725703,-150.5,0.00023771,15]
[329646460,1718538725713,-150.5,0.0002378,15]
[329646461,1718538725741,-822.0,0.0002378,15]
[329646462,1718538725765,-500.0,0.00023789,2]
[329646463,1718538725781,-500.0,0.00023789,2]
[329646464,1718538725794,-260.0,0.0002379,15]
[329646465,1718538725805,-822.0,0.0002379,15]
[329646466,1718538725820,-2468.43387349,0.00023799,20]
[329646467,1718538725832,-15282.51983022,0.000238,2]
[329646468,1718538725856,-735350.34505233,0.000238,3]
[329646469,1718538725874,-155.0,0.000238,2]
[329646470,1718538725886,-918.17,0.00023833,2]
[329646471,1718538725906,-500.0,0.00023835,3]
[329646472,1718538725926,-500.0,0.00023835,3]
[329646473,1718538725943,-500.0,0.00023835,3]
[329646474,1718538725961,-500.0,0.00023835,3]
[329646475,1718538725973,-500.0,0.00023835,3]
[329646476,1718538725984,-500.0,0.00023835,3]
[329646477,1718538726002,-500.0,0.00023835,3]
[329646478,1718538726013,-225.30041796,0.00023835,3]
[329646479,1718538726043,-500.0,0.00023835,3]
[329646480,1718538726055,-500.0,0.00023835,3]
[329646481,1718538726072,-500.0,0.00023835,3]
[329646482,1718538726092,-605.12555658,0.00023835,3]
[329646483,1718538726105,-500.0,0.00023835,3]
[329646484,1718538726125,-500.0,0.00023835,3]
[329646485,1718538726139,-500.0,0.00023835,3]
[329646486,1718538726153,-500.0,0.00023835,3]
[329646487,1718538726169,-667.84,0.00023835,3]
[329646488,1718538726184,-500.0,0.00023835,3]
[329646489,1718538726205,-280.63673114,0.00023835,3]
[329646490,1718538726224,-500.0,0.00023835,3]
[329646491,1718538726239,-500.0,0.00023835,3]
[329646492,1718538726254,-500.0,0.00023835,3]
[329646493,1718538726270,-500.0,0.00023835,3]
[329646494,1718538726293,-500.0,0.00023835,3]
[329646495,1718538726307,-500.0,0.00023835,3]
[329646496,1718538726328,-500.0,0.00023835,3]
[329646497,1718538726343,-500.0,0.00023835,3]
[329646498,1718538726354,-625.0,0.00023835,3]
[329646499,1718538726364,-6613.19,0.00023835,3]
[329646500,1718538726375,-500.0,0.00023835,3]
[329646501,1718538726391,-626.88,0.00023835,3]
[329646502,1718538726405,-500.0,0.00023835,3]
[329646503,1718538726430,-500.0,0.00023835,3]
[329646504,1718538726441,-1006.45,0.00023835,3]
[329646505,1718538726453,-625.67,0.00023835,3]
[329646506,1718538726464,-500.0,0.00023835,3]
[329646507,1718538726483,-500.0,0.00023835,3]
[329646508,1718538726494,-500.0,0.00023835,3]
[329646509,1718538726506,-500.0,0.00023835,3]
[329646510,1718538726517,-643.81,0.00023835,3]
[329646511,1718538726527,-500.0,0.00023835,3]
[329646512,1718538726537,-1016.21,0.00023835,3]
[329646513,1718538726557,-500.0,0.00023835,3]
[329646514,1718538726568,-500.0,0.00023835,3]
[329646515,1718538726580,-849.46,0.00023835,3]
[329646516,1718538726590,-588.93,0.00023835,3]
[329646517,1718538726609,-686.57,0.00023835,3]
[329646518,1718538726623,-500.0,0.00023835,3]
[329646519,1718538726643,-500.0,0.00023835,3]
[329646520,1718538726656,-500.0,0.00023835,3]
[329646521,1718538726666,-568.35,0.00023835,3]
[329646522,1718538726679,-503.85,0.00023835,3]
[329646523,1718538726702,-500.0,0.00023835,3]
[329646524,1718538726713,-902.54,0.00023835,3]
[329646525,1718538726736,-500.0,0.00023835,3]
[329646526,1718538726758,-526.38020819,0.00023835,3]
[329646527,1718538726770,-500.0,0.00023835,3]
[329646528,1718538726793,-500.0,0.00023835,3]
[329646529,1718538726805,-500.0,0.00023835,3]
[329646530,1718538726828,-500.0,0.00023835,3]
[329646531,1718538726842,-500.0,0.00023835,3]
[329646532,1718538726865,-833.07,0.00023835,3]
[329646533,1718538726883,-500.0,0.00023835,3]
[329646534,1718538726894,-500.0,0.00023835,3]
[329646535,1718538726920,-511.59,0.00023835,3]
[329646536,1718538726934,-1114.37,0.00023835,3]
[329646537,1718538726947,-500.0,0.00023835,3]
[329646538,1718538726964,-867.65,0.00023835,3]
[329646539,1718538726989,-564.01,0.00023835,3]
[329646540,1718538727001,-500.0,0.00023835,3]
[329646541,1718538727015,-507.91,0.00023835,3]
[329646542,1718538727028,-500.0,0.00023835,3]
[329646543,1718538727051,-500.0,0.00023835,3]
[329646544,1718538727081,-531.33,0.00023835,3]
[329646545,1718538727097,-500.0,0.00023835,3]
[329646546,1718538727116,-500.0,0.00023835,3]
[329646547,1718538727137,-500.0,0.00023835,3]
[329646548,1718538727154,-618.4,0.00023835,3]
[329646549,1718538727167,-561.59,0.00023835,3]
[329646550,1718538727184,-551.81,0.00023835,3]
[329646551,1718538727197,-500.0,0.00023835,3]
[329646552,1718538727209,-527.68,0.00023835,3]
[329646553,1718538727231,-500.0,0.00023835,3]
[329646554,1718538727243,-540.61,0.00023835,3]
[329646555,1718538727258,-827.67,0.00023835,3]
[329646556,1718538727291,-548.01915492,0.00023835,3]
[329646557,1718538727315,-500.0,0.00023835,3]
[329646558,1718538727337,-500.0,0.00023835,3]
[329646559,1718538727367,-500.0,0.00023835,3]
[329646560,1718538727401,-203.22,0.00023835,3]
[329646561,1718538727420,-1352.2,0.00023835,3]
[329646562,1718538727432,-500.0,0.00023835,3]
[329646563,1718538727452,-500.0,0.00023835,3]
[329646564,1718538727464,-500.0,0.00023835,3]